Cogmind - Beta 13 @@@ ROGUE MODE // 2024.05.12 @ 10:09:11 Player: Barbarossa Result: Destroyed by L-41 Fighter with Axe Performance ------------- Evolutions (4) 2000 Regions Visited (6) 1200 Robots Destroyed (113) 565 Value Destroyed (4327) 4327 Prototype IDs (5) 100 Alien Tech Used (0) 0 Bonus (1502) 1502 TOTAL SCORE: 9694 Bonus ------- High Alert Combat Kills 1002 Entered DSFs 500 Cogmind --------- Core Integrity 0/850 Matter 300/300 Energy 268/300 System Corruption 4% Temperature Warm (125) Movement Rolling (150) Ox4 Location -6/Factory Parts ------- > --- POWER (1) -------- Enhanced Nuclear Core > --- PROPULSION (6) --- Armored Treads Wheel Armored Huge Wheel > --- UTILITY (5) ------ Advanced Heat Sink Cargo Storage Unit Improved Light Armor Plating > --- WEAPON (3) ------- Heavy Laser Heavy Laser Plasma Rifle > --- INVENTORY (30) --- Improved Deuterium Engine Reinforced Deuterium Engine Enhanced Nuclear Core Angular Momentum Engine Advanced Treads Improved Medium Treads Improved Cryofiber Web Advanced Heat Sink Compact Battery (200) Compact Battery (200) Matter Compressor (250) Enhanced Optical Array Advanced Sensor Array Recoil Stabilizer Improved Particle Charger Kinecellerator Force Field Hacking Suite System Restoration Module Improved Field Recycling Unit (0) Gatling Laser Plasma Rifle Heavy Plasma Cannon Heavy Machine Gun Datajack Improved Plasma Cutter Improved Plasma Cutter Peak State ------------ > --- POWER ------------ Enhanced Nuclear Core > --- PROPULSION ------- Armored Treads Improved Medium Treads Improved Medium Treads Improved Medium Treads Wheel Compact Wheel > --- UTILITY ---------- Advanced Heat Sink Cargo Storage Unit Advanced Signal Interpreter Experimental Utility Shielding > --- WEAPON ----------- Heavy Laser Heavy Laser Gauss Rifle > --- INVENTORY -------- Improved Deuterium Engine Reinforced Deuterium Engine Enhanced Nuclear Core Enhanced Nuclear Core Armored Treads Armored Treads Armored Treads Advanced Treads Improved Medium Treads Wheel Wheel Advanced Heat Sink Compact Battery Compact Battery Compact Matter Pod Enhanced Optical Array Advanced Sensor Array Recoil Stabilizer Improved Particle Charger Improved Light Armor Plating Force Field Hacking Suite System Restoration Module Improved Field Recycling Unit Heavy Laser Gatling Laser Flak Gun Datajack Improved Plasma Cutter Improved Plasma Cutter [Rating: 66] Favorites ----------- Power Fission Core Engine Ion Engine Power Core Fission Core Propulsion Armored Treads Treads Armored Treads Leg Aluminum Leg Wheel Wheel Flight Unit Improved Flight Unit Utility Cargo Storage Unit Device Advanced Heat Sink Storage Cargo Storage Unit Processor Advanced Signal Interpreter Protection Improved Propulsion Shielding Weapon Heavy Laser Energy Gun Heavy Laser Energy Cannon Heavy Plasma Cannon Ballistic Gun Heavy Assault Rifle Ballistic Cannon Bore Cannon Launcher Precision Grenade Launcher Special Melee Weapon Datajack Build | -11 -10 -9 -8 -7 -7 -6 ------- Run | Yrd Mat Mat Mat Fac DSF Fac Slots Evolved 8 | . . 2 2 2 . 2 Power . | . . . . . . . Propulsion 4 | . . 2 2 . . . Utility 3 | . . . . 2 . 1 Weapon 1 | . . . . . . 1 Parts Attached 151 | . 5 5 34 2 4 101 Power 11 | . . . 4 . . 7 Engine 5 | . . . 3 . . 2 Core 6 | . . . 1 . . 5 Reactor . | . . . . . . . Propulsion 78 | . 4 4 19 . 1 50 Treads 50 | . 2 2 13 . 1 32 Leg . | . . . . . . . Wheel 27 | . 2 1 6 . . 18 Hover . | . . . . . . . Flight 1 | . . 1 . . . . Utility 30 | . 1 . 1 2 2 24 Device 12 | . . . . 1 . 11 Storage 4 | . 1 . . . 1 2 Processor 2 | . . . 1 . . 1 Hackware . | . . . . . . . Protection 12 | . . . . 1 1 10 Artifact . | . . . . . . . Weapon 32 | . . 1 10 . 1 20 Energy Gun 18 | . . 1 2 . . 15 Energy Cannon 1 | . . . . . . 1 Ballistic Gun 8 | . . . 6 . . 2 Ballistic Cannon 3 | . . . 1 . 1 1 Launcher 1 | . . . . . . 1 Special Weapon . | . . . . . . . Impact Weapon . | . . . . . . . Slashing Weapon . | . . . . . . . Piercing Weapon . | . . . . . . . Special Melee Weapon 1 | . . . 1 . . . Unidentified Prototypes 5 | . . 1 1 . . 3 Parts Lost 72 | . . . 20 . . 52 Power 6 | . . . 3 . . 3 Propulsion 43 | . . . 13 . . 30 Utility 8 | . . . . . . 8 Weapon 15 | . . . 4 . . 11 Highest Loss Streak 9 | . . . 9 . . 9 To Critical Strikes 2 | . . . . . . 2 Average Slot Usage (%) 87 | . 76 85 93 100 93 87 Engine 3 | . 14 11 7 . . 1 Core 3 | . . . . 7 7 4 Treads 25 | . . 21 34 30 30 25 Leg 1 | . 18 . . . . . Wheel 13 | . 9 22 15 15 15 12 Device 5 | . . . . 7 1 7 Storage 7 | . 14 11 9 7 7 6 Processor 5 | . . . 7 7 7 5 Protection 3 | . . . . 7 7 4 Energy Gun 9 | . 5 9 8 . . 10 Energy Cannon 1 | . . . . . . 2 Ballistic Gun 4 | . 14 11 9 7 7 2 Ballistic Cannon 1 | . . . . 7 7 1 Naked Turns . | . . . . . . . Heaviest Build 181 | 14 87 90 92 95 159 181 Greatest Support 130 | 20 32 32 85 28 28 130 Greatest Overweight (x) 17 | . 2 5 5 3 5 17 Average Overweight (x) 4 | . . 2 2 3 4 6 Largest Inventory Capacity 30 | . 25 25 25 25 30 30 Average Capacity 27 | . 11 25 25 25 28 30 Most Carried 30 | . 8 12 25 19 26 30 Average Carried 24 | . 6 8 23 17 20 28 Final Capacity 30 | 8 25 25 25 25 30 30 Final Carried 27 | 6 7 12 20 18 26 27 Class Distribution -------------------- 31% | Mutant 23% | Hauler-Tank 15% | Hauler-Mutant 7% | Scavenger-Gunner 6% | Scavenger-Skirmisher 6% | Hauler-Gunner 4% | Scavenger-Tank Dominant Class ---------------- Mutant | -10/Materials Mutant | -9/Materials Mutant | -8/Materials Mutant | -7/Factory Hauler-Mutant | -7/DSF Hauler-Tank | -6/Factory Resources | -11 -10 -9 -8 -7 -7 -6 ----------- Run | Yrd Mat Mat Mat Fac DSF Fac Matter Collected 3068 | 200 107 101 707 . 119 1834 Remotely . | . . . . . . . Salvage Created 6350 | . 107 368 1034 . . 4841 Parts 238 | . 6 19 50 . . 163 Haulers Intercepted 2 | . . 1 . . . 1 Recyclers Shooed 15 | . . 1 6 . . 8 Parts Field Recycled . | . . . . . . . Retrieved Matter . | . . . . . . . Parts Self-Destructed . | . . . . . . . Prevented . | . . . . . . . Kills | -11 -10 -9 -8 -7 -7 -6 ------- Run | Yrd Mat Mat Mat Fac DSF Fac Combat Hostiles Destroyed 85 | . 2 6 16 . . 61 Guns 65 | . 2 6 16 . . 41 Cannons 9 | . . . . . . 9 AOE 3 | . . . . . . 3 Classes Destroyed 17 | . 1 3 7 . . 6 Worker 12 | . . . 1 . . 11 Builder 2 | . . . 1 . . 1 Hauler 2 | . . 1 . . . 1 Recycler 14 | . . 2 2 . . 10 Mechanic 1 | . . . . . . 1 Operator 1 | . . . . . . 1 Watcher 1 | . . . 1 . . . Swarmer 12 | . . 4 2 . . 6 Grunt 38 | . 2 2 5 . . 29 Brawler 2 | . . . . . . 2 Duelist 3 | . . . 1 . . 2 Sentry 9 | . . . 3 . . 6 Specialist 7 | . . . 4 . . 3 Hunter 3 | . . . . . . 3 Programmer 9 | . . . . . . 9 Heavy 1 | . . . 1 . . . Behemoth 1 | . . . . . . 1 Best Kill Streak 7 | . 2 4 4 . . 7 Combat Bots Only 5 | . 2 4 3 . . 5 Max Kills in Single Turn 4 | . 1 1 1 . . 4 Gunslinging 1 | . . . . . . 1 Exploded 3 | . . . . . . 3 Melee . | . . . . . . . Uniques/NPCs Destroyed . | . . . . . . . Combat | -11 -10 -9 -8 -7 -7 -6 -------- Run | Yrd Mat Mat Mat Fac DSF Fac Hostile Shots Fired 1382 | . 17 31 307 . . 1027 Missed 435 | . 3 6 116 . . 310 Damage Taken 13786 | . 175 233 2919 . . 10459 Core 1317 | . 14 53 391 . . 859 Absorbed by Shields . | . . . . . . . Redirected to Shielding 103 | . . . . . . 103 Regen/Repaired (Parts) 1299 | . . . . 45 . 1254 Core Remaining (%) 81 | 100 94 86 28 . 100 . Volleys Fired 371 | . 23 20 93 . . 235 Largest 3 | . 2 2 2 . . 3 Hottest 239 | . 60 76 84 . . 239 Shots Fired 835 | . 34 40 180 . . 581 Gun 746 | . 34 40 180 . . 492 Cannon 89 | . . . . . . 89 Launcher . | . . . . . . . Special . | . . . . . . . Kinetic 279 | . 23 20 113 . . 123 Thermal 545 | . . 20 67 . . 458 Explosive . | . . . . . . . Electromagnetic 11 | . 11 . . . . . Robot Hit Streak 27 | . 6 4 12 . . 27 Robot Miss Streak 9 | . 9 3 2 . . 6 Penetration Max 1 | . . . . . . 1 Secondary Targets 15 | . . 2 4 . . 9 Max Gunslinging Chain 1 | . . 1 1 . . 1 Shots Hit Robots 578 | . 18 22 136 . . 402 Core Hits 264 | . 5 13 41 . . 205 Critical Kills . | . . . . . . . Critical Parts Destroyed 2 | . . . 1 . . 1 Critical Strikes 27 | . . . 8 . . 19 Burn 22 | . . . 7 . . 15 Destroy 2 | . . . 1 . . 1 Blast 3 | . . . . . . 3 Melee Attacks . | . . . . . . . Impact . | . . . . . . . Slashing . | . . . . . . . Piercing . | . . . . . . . Sneak Attacks . | . . . . . . . Combat Hostiles . | . . . . . . . Follow-up Attacks . | . . . . . . . Damage Inflicted 13279 | . 230 298 2260 . . 10491 Guns 10483 | . 230 298 2260 . . 7695 Cannons 2187 | . . . . . . 2187 Explosions 609 | . . . . . . 609 Melee . | . . . . . . . Ramming . | . . . . . . . Kinetic 3932 | . 127 168 1309 . . 2328 Thermal 9141 | . . 130 951 . . 8060 Explosive . | . . . . . . . Electromagnetic 206 | . 103 . . . . 103 Impact . | . . . . . . . Slashing . | . . . . . . . Piercing . | . . . . . . . Highest Corruption 4 | . . . . . . 4 Average Corruption 2 | . . . . . . 2 Corruption Purged 4 | . . . . . . 4 Corruption Blocked . | . . . . . . . Effects 21 | . . . . . . 21 Message Errors 8 | . . . . . . 8 Matter Fused 6 | . . . . . . 6 Energy Discharges 3 | . . . . . . 3 Parts Rejected 1 | . . . . . . 1 Data Loss (minor) 2 | . . . . . . 2 Weapon Failures 1 | . . . . . . 1 Overload Shots . | . . . . . . . Overflow Damage 239 | . . . . . . 239 Projectiles 103 | . . . . . . 103 Explosions 136 | . . . . . . 136 Melee . | . . . . . . . Knockbacks 4 | . . . . . . 4 Impact . | . . . . . . . Kinetic 3 | . . . . . . 3 Secondary 1 | . . . . . . 1 Self-Inflicted Damage 91 | . . . . . . 91 Shots 3 | . . . . . . 3 Rammed . | . . . . . . . Targets Rammed . | . . . . . . . Kicked . | . . . . . . . Crushed . | . . . . . . . Highest Temperature 468 | . 93 69 238 . 240 468 Average Temperature 95 | . 47 22 54 . 86 114 Received Heat Transfer 3484 | . 105 48 486 . . 2845 Effects 16 | . . . . . . 16 Shutdowns 5 | . . . . . . 5 Energy Bleed 3 | . . . . . . 3 Interference 3 | . . . . . . 3 Damage (minor) 1 | . . . . . . 1 Damage (major) 4 | . . . . . . 4 Siege Activations . | . . . . . . . Robots Corrupted . | . . . . . . . Combat Hostiles . | . . . . . . . Parts Fried 3 | . . . . . . 3 Impact Corruptions 1 | . . . . . . 1 Robots Melted 8 | . . . . . . 8 Combat Hostiles 8 | . . . . . . 8 Parts Melted 57 | . . . 8 . . 49 Heat Transferred 18764 | . . 333 2664 . . 15767 Parts Sabotaged 2 | . . . . . . 2 Parts Stolen . | . . . . . . . Parts Stripped . | . . . . . . . Power Chain Reactions . | . . . . . . . Alert | -11 -10 -9 -8 -7 -7 -6 ------- Run | Yrd Mat Mat Mat Fac DSF Fac Peak Influence 1167 | . 156 172 274 91 67 1167 Initial 77 | . . . 72 77 67 35 Average 388 | . 61 81 152 87 67 528 Maximum Alert Level 4 | . . . 1 . . 4 Low Security (%) 42 | . 100 100 76 100 100 18 Level 1 12 | . . . 23 . . 12 Level 2 25 | . . . . . . 38 Level 3 19 | . . . . . . 28 Level 4 1 | . . . . . . 1 Level 5 . | . . . . . . . High Security . | . . . . . . . Max Security . | . . . . . . . Sterilizations 1 | . . . . . 1 . Squads Dispatched 31 | . . . 4 . . 27 Investigation 4 | . . . 1 . . 3 Extermination 8 | . . . . . . 8 Reinforcement 10 | . . . 3 . . 7 Assault 3 | . . . . . . 3 Garrison 6 | . . . . . . 6 Intercept . | . . . . . . . Searches Triggered . | . . . . . . . Construction Impeded 2 | . . . . . . 2 Haulers Reinforced 1 | . . . . . . 1 Active Scanning Responses . | . . . . . . . Cargo Convoy Interrupts . | . . . . . . . Stealth | -11 -10 -9 -8 -7 -7 -6 --------- Run | Yrd Mat Mat Mat Fac DSF Fac Distress Signals 11 | . . . 4 . . 7 Communications Jammed . | . . . . . . . Distress Signals . | . . . . . . . Times Spotted 152 | . 10 8 36 . 2 96 Peak Tracking Total 8 | . 3 4 8 . 1 8 Tactical Retreats 9 | . 1 . 4 . . 4 Traps | -11 -10 -9 -8 -7 -7 -6 ------- Run | Yrd Mat Mat Mat Fac DSF Fac Traps Triggered 2 | . . . 1 . 1 . Indirectly . | . . . . . . . Trap Hack Attempts 2 | . . . 2 . . . Triggered . | . . . . . . . Disarmed 1 | . . . 1 . . . Reprogrammed . | . . . . . . . Reused . | . . . . . . . Traps Extracted . | . . . . . . . Installed . | . . . . . . . Triggered . | . . . . . . . Machines | -11 -10 -9 -8 -7 -7 -6 ---------- Run | Yrd Mat Mat Mat Fac DSF Fac Machines Disabled 18 | . . . 1 . . 17 Max in Single Turn 6 | . . . 1 . . 6 Machines Repaired . | . . . . . . . Machines Dismantled . | . . . . . . . Machines Sabotaged . | . . . . . . . Overloaded Fab Kills . | . . . . . . . Hacking | -11 -10 -9 -8 -7 -7 -6 --------- Run | Yrd Mat Mat Mat Fac DSF Fac Machines Accessed 19 | . 1 1 5 4 . 8 Terminals 8 | . 1 1 4 2 . . Fabricators 2 | . . . . . . 2 Repair Stations 5 | . . . . 1 . 4 Recycling Units 2 | . . . . 1 . 1 Scanalyzers 1 | . . . 1 . . . Garrison Access 1 | . . . . . . 1 Total Hacks 52 | . 3 5 18 5 . 21 Successful 28 | . . 1 12 3 . 12 Failed 24 | . 3 4 6 2 . 9 Catastrophic 4 | . . . 1 1 . 2 Database Lockouts . | . . . . . . . Manual 19 | . 3 5 10 1 . . Terminals 21 | . 3 5 11 2 . . Fabricators 4 | . . . . . . 4 Repair Stations 15 | . . . . 2 . 13 Recycling Units 2 | . . . . 1 . 1 Scanalyzers 7 | . . . 7 . . . Garrison Access 3 | . . . . . . 3 Terminal Hacks 2 | . . . 1 1 . . Open DSF 1 | . . . . 1 . . Locate Traps 1 | . . . 1 . . . Fabricator Hacks 2 | . . . . . . 2 Load Schematic 1 | . . . . . . 1 Build 1 | . . . . . . 1 Repair Station Hacks 12 | . . . . 2 . 10 Scan Component 6 | . . . . 1 . 5 Repair 6 | . . . . 1 . 5 Recycling Unit Hacks . | . . . . . . . Scanalyzer 7 | . . . 7 . . . Insert Component 3 | . . . 3 . . . Analyze 4 | . . . 4 . . . Garrison Access Hacks . | . . . . . . . Unauthorized Hacks 5 | . . 1 4 . . . Terminals 5 | . . 1 4 . . . Botnet 5 | . . 1 4 . . . Fabricators . | . . . . . . . Repair Stations . | . . . . . . . Recycling Units . | . . . . . . . Scanalyzers . | . . . . . . . Garrison Access . | . . . . . . . Data Cores Recovered . | . . . . . . . Used . | . . . . . . . Hacking Detections 16 | . 1 1 4 3 . 7 Full Trace Events 3 | . . . . . . 3 Feedback Events . | . . . . . . . Feedback Blocked . | . . . . . . . Robot Schematics Acquired . | . . . . . . . Robots Built . | . . . . . . . Authchips . | . . . . . . . Time . | . . . . . . . Total Robot Build Rating . | . . . . . . . Part Schematics Acquired 3 | . . . 3 . . . Parts Built 2 | . . . . . . 2 Authchips . | . . . . . . . Time 35 | . . . . . . 35 Total Part Build Rating 12 | . . . . . . 12 Parts Repaired 6 | . . . . 1 . 5 Time 221 | . . . . 19 . 202 Parts Recycled . | . . . . . . . Recycled Matter . | . . . . . . . Retrieved Matter . | . . . . . . . Retrieved Components . | . . . . . . . Parts Scanalyzed 3 | . . . 3 . . . Part Schematics Acquired 3 | . . . 3 . . . Parts Damaged . | . . . . . . . Bothacking | -11 -10 -9 -8 -7 -7 -6 ------------ Run | Yrd Mat Mat Mat Fac DSF Fac Used RIF Installer . | . . . . . . . Robots Hacked . | . . . . . . . Non-combat . | . . . . . . . Combat . | . . . . . . . Robot Hacks Applied . | . . . . . . . Relay Couplers Released . | . . . . . . . Fabnet Peak Effective % . | . . . . . . . Robots Rewired . | . . . . . . . Allies Hacked . | . . . . . . . Hacks Repelled . | . . . . . . . Allies | -11 -10 -9 -8 -7 -7 -6 -------- Run | Yrd Mat Mat Mat Fac DSF Fac Total Allies . | . . . . . . . Largest Group . | . . . . . . . Highest-Rated Group . | . . . . . . . Highest-Rated Ally . | . . . . . . . Total Orders . | . . . . . . . Ally Attacks . | . . . . . . . Total Damage . | . . . . . . . Kills . | . . . . . . . Allies Corrupted . | . . . . . . . Allies Melted . | . . . . . . . Intel | -11 -10 -9 -8 -7 -7 -6 ------- Run | Yrd Mat Mat Mat Fac DSF Fac Robot Analysis Total . | . . . . . . . Derelict Logs Recovered . | . . . . . . . Drone Launches . | . . . . . . . Drone Recoveries . | . . . . . . . Exploration | -11 -10 -9 -8 -7 -7 -6 ------------- Run | Yrd Mat Mat Mat Fac DSF Fac Turns Passed 6013 | . 438 243 1031 182 133 3986 Spaces Moved 2509 | 1 309 130 455 113 73 1428 Core . | . . . . . . . Treads 19 | . . . 5 . . 14 Legs 197 | 1 196 . . . . . Wheels 2293 | . 113 130 450 113 73 1414 Hover . | . . . . . . . Flight . | . . . . . . . Fastest Speed 100 | 120 100 130 130 140 140 131 Average Speed 167 | 120 118 130 138 140 163 192 Slowest Speed 400 | 120 130 175 400 140 170 335 Overloaded Moves . | . . . . . . . Propulsion Burnouts . | . . . . . . . Robots Hopped . | . . . . . . . Cave-ins Triggered . | . . . . . . . Exploration Rate (%) 30 | 2 53 20 37 3 62 33 Regions Visited 6 Branch Regions . Pre-discovered Areas . | . . . . . . . Known Exits Taken 2 | . . . 1 1 . . Unknown Exits Taken 3 | 1 1 1 . . . . Scrap Searched . | . . . . . . . Spaces Dug . | . . . . . . . Terrain Destroyed 47 | . . . . . . 47 Melee . | . . . . . . . Projectile 27 | . . . . . . 27 AOE 20 | . . . . . . 20 Terrain Rammed . | . . . . . . . Walls Destroyed . | . . . . . . . Machines Disabled . | . . . . . . . Actions | -11 -10 -9 -8 -7 -7 -6 --------- Run | Yrd Mat Mat Mat Fac DSF Fac Total 3587 | . 348 163 686 138 88 2164 Wait 374 | . . . 60 19 . 295 Move 2503 | . 308 129 454 112 72 1428 Hop . | . . . . . . . Pick Up 123 | . 5 7 32 3 8 68 Fast Attach 29 | . 2 3 8 . 1 15 Attach 74 | . . 2 18 2 2 50 Detach 5 | . . . . . 2 3 Swap 48 | . 3 . 8 . 1 36 Drop 58 | . 7 2 11 2 2 34 Fire 371 | . 23 20 93 . . 235 Melee . | . . . . . . . Ram . | . . . . . . . Kick . | . . . . . . . Crush . | . . . . . . . Escape Stasis . | . . . . . . . Rewire . | . . . . . . . Trap 2 | . . . 2 . . . Miscellaneous . | . . . . . . . Route ------- -11/Scrapyard -10/Materials (discovered 2 exits: *Mat / [*Min]) -9/Materials -8/Materials (discovered 2 exits: *Fac / *Sto) -7/Factory -7/DSF -6/Factory (discovered 1 exit: [*Fac]) History --------- Turn | Location | Event 1 | -11/Scrapyard | Discovered new exit (range 0) 1 | -11/Scrapyard | Entered Materials 193 | -10/Materials | Discovered new exit (range 8) 307 | -10/Materials | Build established: Mutant 432 | -10/Materials | Discovered new exit (range 4) 439 | -10/Materials | Entered another Materials area 439 | -9/Materials | Evolved 2 slots: Propulsion x2 624 | -9/Materials | Discovered new exit (range 15) 682 | -9/Materials | Entered another Materials area 682 | -8/Materials | Evolved 2 slots: Propulsion x2 1120 | -8/Materials | Lost 5 parts (1p3n1w) 1200 | -8/Materials | Discovered new exit (range 12) 1431 | -8/Materials | Identified exit to Storage 1612 | -8/Materials | Core integrity fell below 50% 1692 | -8/Materials | Lost 9 parts (1p6n2w) 1692 | -8/Materials | Discovered new exit (range 5) 1711 | -8/Materials | Identified exit to Factory 1713 | -8/Materials | Entered Factory 1713 | -7/Factory | Evolved 2 slots: Utility x2 1774 | -7/Factory | Repaired Adv. Treads 1895 | -7/Factory | Identified exit to DSF 1895 | -7/Factory | Entered DSF 1895 | -7/DSF | Encountered a pitched battle between 0b10 and Warlord forces 1916 | -7/DSF | Spotted Striker 1933 | -7/DSF | Sterilization system engaged 1953 | -7/DSF | Ambient heat levels rising (+10) 1957 | -7/DSF | Lost 8 allies 1968 | -7/DSF | Ambient heat levels rising (+10) 1983 | -7/DSF | Ambient heat levels rising (+10) 1988 | -7/DSF | Discovered new exit (range 11) 1998 | -7/DSF | Ambient heat levels rising (+10) 2013 | -7/DSF | Ambient heat levels rising (+10) 2027 | -7/DSF | Identified exit to Factory 2028 | -7/DSF | Ambient heat levels rising (+10) 2028 | -7/DSF | Entered Factory 2028 | -6/Factory | Evolved 2 slots: Utility x1, Weapon x1 2490 | -6/Factory | Build established: Hauler-Tank 2607 | -6/Factory | Lost 3 parts (1n1u1w) 2691 | -6/Factory | Lost 9 parts (1p4n2u2w) 2884 | -6/Factory | Build established: Hauler-Mutant 2997 | -6/Factory | Fabricated Imp. Plasma Cutter (x2) 3449 | -6/Factory | Repaired Imp. Medium Treads 3572 | -6/Factory | Build established: Scavenger-Gunner 4128 | -6/Factory | First assault squad dispatched 4174 | -6/Factory | Core integrity fell below 50% 4204 | -6/Factory | Lost 3 parts (2n1u) 4507 | -6/Factory | Garrison activated, responded to threat 4575 | -6/Factory | Lost 3 parts (1p1n1w) 4656 | -6/Factory | Repaired Arm. Treads 4700 | -6/Factory | Lost 3 parts (1n2w) 4716 | -6/Factory | Repaired Arm. Treads 4818 | -6/Factory | Lost 3 parts (3n) 4863 | -6/Factory | Build established: Hauler-Tank 5044 | -6/Factory | Garrison activated, responded to threat 5336 | -6/Factory | Core integrity fell below 20% 5398 | -6/Factory | Lost 5 parts (1n1u3w) 5465 | -6/Factory | Repaired Arm. Treads 5504 | -6/Factory | Repaired Arm. Treads 5718 | -6/Factory | Lost 3 parts (2n1u) 5782 | -6/Factory | Spotted B-75 Beast 5867 | -6/Factory | Destroyed B-75 Beast 5898 | -6/Factory | Lost 7 parts (4n2u1w) 5998 | -6/Factory | Discovered new exit (range 6) 6014 | -6/Factory | Destroyed by L-41 Fighter with Axe Last Messages --------------- 05979_ G-67 Veteran unfolds itself. 05979_ L-41 Fighter unfolds itself. 05979_ B-48 Gladiator unfolds itself. 05980_ System corrupted: Adv. Heat Sink rejected. 05982_ ALERT: Suspicious intruders detected, dispatching Specialist reinforcements to area. 05995_ Mic. Fission Core melted. 05995_ X-72 Disruptor destroyed. 05998_ EXIT=FOUND 05999_ Wheel destroyed. 05999_ Knocked back. 06001_ Arm. Treads destroyed. 06001_ Knocked back. 06003_ Penetrated by Slug. 06003_ Knocked back. 06003_ X-72 Disruptor knocked back. 06009_ H-61 Shepherd calls for reinforcements. 06009_ ALERT: Hostile activity reported, dispatching reinforcements to area. Map ----- +----------------------------------------------------+ | ???????????????????????????????# """" """" | | ???????????????????????????????# """" """" | | ???????????????????????????????# """" """" | | ???????????????????????????????# | | ???????????????????????????????# | | ?????????????????????????????+#?#+########### | | ????????????????????????##### #?# #???# # | | ?????????????????????? ### ##### | | ?????????????????? ?? ?# [ ! | | ?????????????????# ??" "" # ##### | | ?????????????????# ?"" "" "?# #???# # | | ?????????????????# """ """ ### #???## ## | | ?????????????????# """ """ ! "?# ###### "#? | | ?????????????????# """ """ #?# # # "%## | | ?????????????????# #?# "% # "# | | ?????????????????# "" ### # # # | | ?????????????????# "" ^ # " # | | ?????????????????# ^"""^ %" " " | | ?????????????????# """ ##"" | " %! | | ?????????????????# """ ###"[*==" ![ | | ?????????????????# !!! ##* !%!## " | | ?????????????#+### =% !!! %## [ % # | | ?????????????+ *[%% !! % *% ## | | ?????????????# % ############! %/ #? | | ?????????????# xl##?????????# =% ##+###? | | ?????????????# @;#?????????###+####????? | | ?????????????# ;#?????????# #????? | | ?????????????+ H ##?????????# #????? | | ?????????????# #??????????# #????? | | ?????????????# #??????????# #????? | | ?????????????####+####??????????# #????? | | ????????????????????????????????# #????? | | ????????????????????????????????########????? | | ????????????????????????????????????????????? | | ????????????????????????????????????????????? | | ????????????????????????????????????????????? | | ????????????????????????????????????????????? | | ????????????????????????????????????????????? | | ????????????????????????????????????????????? | | ????????????????????????????????????????????? | | ????????????????????????????????????????????? | | ????????????????????????????????????????????? | | ????????????????????????????????????????????? | | ????????????????????????????????????????????? | | ????????????????????????????????????????????? | | ????????????????????????????????????????????? | | ????????????????????????????????????????????? | | ????????????????????????????????????????????? | | ????????????????????????????????????????????? | | ????????????????????????????????????????????? | +----------------------------------------------------+ Best States ------------- Heat Dissipation 75 Energy Generation 18 Energy Capacity 510 Matter Stores 300 Matter Capacity 450 Sight Range 16 Robot Scan Range 16 Terrain Scan Density 10 Armor Coverage 300 Propulsion Shielding 66 Evasion (%) 55 Recoil Reduction 8 Item Schematics ----------------- Imp. Propulsion Shielding | -8/Materials | Scanalyzed Recoil Stabilizer | -8/Materials | Scanalyzed Arm. Wheel | -8/Materials | Scanalyzed Robot Schematics ------------------ None Fabricated ------------ Imp. Plasma Cutter | x2 | -6/Factory | Preloaded Alien Tech Used ----------------- None Achievements -------------- None Challenges ------------ None Game ------ Seed NeutrinoDirtyShifter Manual? 0 Play Time 00:54:31 Cumulative 164.1 hours Start 2024.05.11 @ 17:25:46 End 2024.05.12 @ 10:09:11 Sessions 3 Manual Loads 0 Difficulty Rogue Special Mode None Game No. 312 Rogue 312 Adventurer 0 Explorer 0 Win Type - Total 0 Types 0/0/0/0/0/0/0/0/0 Lore% 41 Gallery% 52 Achievement% 37 Wizard Run 0 Options --------- Layout 1 ASCII 0 Keyboard 0 Movement Mouse Keybinds 0 Fullscreen 1 Font 24/Smallcaps Map View 50x40 Zoom Use 0% Tactical HUD 1 Map Filters NONE Filters NONE Steam 1 RUN: b848c5fd-934f-4e76-a623-8352824b75db